fUSD/lending_fUSD_20240227
["ID","MTS","AMOUNT","RATE_DAILY","PERIOD"]
[315456706,1709045449255,-500.0,0.00023899,2]
[315456708,1709045449264,-500.0,0.00023899,2]
[315456710,1709045449273,-500.0,0.00023899,2]
[315456712,1709045449282,-500.0,0.00023899,2]
[315456714,1709045449291,-500.0,0.00023899,2]
[315456715,1709045449300,-500.0,0.00023899,2]
[315456716,1709045449309,-500.0,0.00023899,2]
[315456717,1709045449318,-500.0,0.00023899,2]
[315456718,1709045449327,-500.0,0.00023899,2]
[315456719,1709045449336,-500.0,0.00023899,2]
[315456720,1709045449345,-500.0,0.00023899,2]
[315456721,1709045449354,-500.0,0.00023899,2]
[315456722,1709045449363,-500.0,0.00023899,2]
[315456723,1709045449372,-500.0,0.00023899,2]
[315456724,1709045449382,-500.0,0.00023899,2]
[315456725,1709045449392,-500.0,0.00023899,2]
[315456726,1709045449402,-500.0,0.00023899,2]
[315456727,1709045449413,-500.0,0.00023899,2]
[315456728,1709045449424,-500.0,0.00023899,2]
[315456729,1709045449435,-500.0,0.00023899,2]
[315456731,1709045449447,-500.0,0.00023899,2]
[315456734,1709045449458,-846.37,0.00023899,2]
[315456736,1709045449468,-846.37,0.00023899,2]
[315456738,1709045449478,-500.0,0.00023899,2]
[315456739,1709045449488,-500.0,0.00023899,2]
[315456741,1709045449498,-500.0,0.00023899,2]
[315456744,1709045449507,-500.0,0.00023899,2]
[315456745,1709045449516,-500.0,0.00023899,2]
[315456747,1709045449526,-500.0,0.00023899,2]
[315456749,1709045449535,-706.69,0.00023899,2]
[315456751,1709045449544,-706.69,0.00023899,2]
[315456752,1709045449553,-500.0,0.00023899,2]
[315456753,1709045449564,-500.0,0.00023899,2]
[315456754,1709045449573,-653.11,0.00023899,2]
[315456755,1709045449582,-653.11,0.00023899,2]
[315456756,1709045449591,-872.39,0.00023899,2]
[315456757,1709045449600,-500.0,0.00023899,2]
[315456758,1709045449610,-500.0,0.00023899,2]
[315456759,1709045449619,-166.23,0.00023899,2]
[315456760,1709045449628,-500.0,0.00023899,2]
[315456761,1709045449637,-500.0,0.00023899,2]
[315456762,1709045449646,-500.0,0.00023899,2]
[315456763,1709045449656,-385.05,0.00023899,2]
[315456764,1709045449665,-411.68,0.00023899,2]
[315456765,1709045449676,-2856.78,0.00023899,2]
[315456766,1709045449688,-500.0,0.00023899,2]
[315456767,1709045449698,-500.0,0.00023899,2]
[315456768,1709045449707,-500.0,0.00023899,2]
[315456769,1709045449716,-500.0,0.00023899,2]
[315456771,1709045449726,-522.45,0.00023899,2]
[315456773,1709045449734,-504.83,0.00023899,2]
[315456775,1709045449743,-504.83,0.00023899,2]
[315456776,1709045449752,-199.72388187,0.000239,2]
[315456779,1709045449763,-411.68,0.000239,2]
[315456781,1709045449773,-20054.86092783,0.000239,4]
[315456782,1709045449782,-270.45486,0.000239,7]
[315456784,1709045449791,-3628.21696613,0.000239,2]
[315456786,1709045449800,-157.25162135,0.000239,2]
[315456788,1709045449811,-1459.96908587,0.000239,2]
[315456790,1709045449820,-199.72388187,0.000239,2]
[315456792,1709045449829,-411.68,0.000239,2]
[315456794,1709045449838,-15282.36,0.000239,2]
[315456796,1709045449847,-15282.36,0.000239,2]
[315456798,1709045449856,-15282.36,0.000239,2]
[315456800,1709045449865,-15282.36,0.000239,2]
[315456802,1709045449874,-15282.36,0.000239,2]
[315456804,1709045449883,-15282.36,0.000239,2]
[315456806,1709045449892,-15282.36,0.000239,2]
[315456808,1709045449901,-15282.36,0.000239,2]
[315456810,1709045449910,-304.03,0.000239,2]
[315456811,1709045449919,-15282.36,0.000239,2]
[315456812,1709045449928,-304.03,0.000239,2]
[315456813,1709045449937,-5038.80493176,0.000239,2]
[315456814,1709045449955,-524.75407392,0.000239,2]
[315456815,1709045449966,-9718.80099432,0.000239,2]
[315456816,1709045449975,-304.03,0.000239,2]
[315456817,1709045449984,-15282.36,0.000239,2]
[315456818,1709045449994,-304.03,0.000239,2]
[315456819,1709045450003,-15282.36,0.000239,2]
[315456820,1709045450013,-304.03,0.000239,2]
[315456821,1709045450022,-15282.36,0.000239,2]
[315456822,1709045450031,-116.92993643,0.000239,2]
[315456823,1709045450043,-187.10006357,0.000239,2]
[315456824,1709045450053,-1488.89993643,0.000239,2]
[315456825,1709045450076,-5228.23693883,0.000239,2]
[315456826,1709045461764,151.0,0.00028397,120]
[315456835,1709045836896,151.0,0.00029249,120]
[315456837,1709046129301,310.0,0.0003,120]
[315456838,1709046202855,151.0,0.00029381,120]
[315456839,1709046304615,2100.0,0.0003,120]
[315456840,1709046416108,-201.02735968,0.00018918,2]
[315456841,1709046444105,-57.40641663,0.00018918,2]
[315456842,1709046444125,-422.83228666,0.00018918,2]
[315456843,1709046444145,-702.21,0.00018919,2]
[315456844,1709046444166,-250.0,0.000192,2]
[315456845,1709046444187,-900.40662794,0.0002,2]
[315456846,1709046444207,-5311.24263685,0.0002,4]
[315456847,1709046444229,-155.0,0.0002,2]
[315456848,1709046444253,-150.0,0.00020869,2]
[315456849,1709046444274,-222.5,0.00020876,2]
[315456850,1709046444296,-300.0,0.00020888,2]
[315456851,1709046444340,-18539.85614387,0.00020889,2]
[315456852,1709046481214,200.0,0.00023,30]
[315456853,1709046569959,151.0,0.00029834,120]
[315456862,1709046632206,-422.83228666,0.00019999,2]
[315456863,1709046632216,-258.43377631,0.00019999,2]
[315456864,1709046632226,-1131.87100002,0.0002,3]
[315456865,1709046632236,-1022.61287701,0.0002,4]
[315456866,1709046632272,-1064.25258234,0.0002,4]
[315456867,1709046632334,-1984.59096667,0.0002,4]
[315456884,1709046633173,-1239.78621083,0.0002,4]
[315456885,1709046633183,-205.0,0.00020736,2]
[315456886,1709046633192,-589.42253642,0.00020888,2]
[315456887,1709046633202,-500.0,0.00020888,2]
[315456888,1709046633211,-500.0,0.00020888,2]
[315456889,1709046633220,-500.0,0.00020888,2]
[315456890,1709046633230,-500.0,0.00020888,2]
[315456891,1709046633240,-500.0,0.00020888,2]
[315456892,1709046633250,-153.70721621,0.00020888,2]
[315456893,1709046633259,-23900.0,0.00020897,2]
[315456894,1709046633268,-312.61,0.00020898,2]
[315456895,1709046633277,-240.61,0.00020898,2]
[315456896,1709046633287,-250.0,0.00020929,2]
[315456897,1709046633296,-153.18,0.00020969,2]
[315456898,1709046633305,-20000.0,0.00021,2]
[315456899,1709046633314,-250.0,0.00021053,2]
[315456900,1709046633324,-2000.0,0.00021095,2]
[315456901,1709046633335,-666.46,0.00021095,2]
[315456902,1709046633345,-702.21,0.00021183,2]
[315456903,1709046633354,-162.0,0.00021237,2]
[315456904,1709046633372,-500.0,0.0002126,2]
[315456905,1709046633384,-452.82,0.0002126,2]
[315456906,1709046633393,-244.0,0.00021537,2]
[315456907,1709046633402,-153.0,0.00021537,2]
[315456908,1709046633412,-182.42,0.00021591,2]
[315456909,1709046633421,-1000.0,0.0002179,2]
[315456910,1709046633431,-155.15,0.00021918,2]
[315456911,1709046633440,-585.35624693,0.00021979,2]
[315456912,1709046633450,-1625.98957469,0.00021981,2]
[315456913,1709046633459,-1625.98957469,0.00021982,2]
[315456914,1709046633469,-210.72824894,0.00021982,2]
[315456915,1709046633478,-210.72824894,0.00021983,2]
[315456916,1709046633488,-4516.63770735,0.00021983,2]
[315456917,1709046633498,-1625.98957469,0.00021985,2]
[315456918,1709046633508,-4516.63770735,0.00021987,2]
[315456919,1709046633517,-4516.63770735,0.00021988,2]
[315456920,1709046633527,-210.72824894,0.00021989,2]
[315456921,1709046633537,-585.35624693,0.00021992,2]
[315456922,1709046633547,-585.35624693,0.00021993,2]
[315456923,1709046633557,-4516.63770735,0.00021994,2]
[315456924,1709046633567,-1625.98957469,0.00021995,2]
[315456925,1709046633577,-210.72824894,0.00021996,2]
[315456926,1709046633587,-585.35624693,0.00021997,2]
[315456927,1709046633597,-1750.0,0.00022,3]
[315456928,1709046633607,-20000.0,0.00022,2]
[315456929,1709046633617,-153.18,0.00022062,2]
[315456930,1709046633627,-2385.8387388,0.00022104,3]
[315456931,1709046633636,-188.03985432,0.00022104,3]
[315456932,1709046633646,-232.204068,0.00022131,2]
[315456933,1709046633655,-6325.5806,0.00022233,2]
[315456934,1709046633665,-5800.201,0.00022339,2]
[315456935,1709046633675,-565.2902,0.00022339,2]
[315456936,1709046633684,-31524.6164,0.00022339,2]
[315456937,1709046633694,-743.6723,0.00022339,2]
[315456938,1709046633704,-3396.3828,0.00022339,2]
[315456939,1709046633713,-433.760608,0.00022339,2]
[315456940,1709046633722,-155.44,0.00022345,2]
[315456941,1709046633732,-433.76060799,0.00022389,2]
[315456942,1709046633742,-156.00358228,0.00022433,2]
[315456943,1709046633752,-155.00149833,0.00022437,2]
[315456944,1709046633761,-62933.0962,0.00022439,2]
[315456945,1709046633770,-1163.0575,0.00022439,2]
[315456946,1709046633779,-1009.6838,0.00022439,2]
[315456947,1709046633789,-39630.2475,0.00022439,2]
[315456948,1709046633799,-48572.43089686,0.00022439,2]
[315456949,1709046633813,-3927.02912212,0.00022439,2]
[315456950,1709046633831,-853.15156266,0.00022439,2]
[315456951,1709046633842,-741.8811006,0.00022439,2]
[315456952,1709046633862,-449.271,0.00022439,2]
[315456953,1709046633874,-5535.80237979,0.00022439,2]
[315456969,1709046638107,-1059.16585462,0.0002,3]
[315456970,1709046638119,-1276.52398187,0.0002,3]
[315456971,1709046638128,-710.60669813,0.0002,3]
[315456972,1709046638232,-1625.08313836,0.0002,3]
[315456973,1709046638242,-2335.68983649,0.0002,3]
[315456974,1709046638251,-2335.68983649,0.0002,3]
[315456975,1709046638260,-2335.68983649,0.0002,3]
[315456976,1709046638270,-2335.68983649,0.0002,3]
[315456977,1709046638279,-2335.68983649,0.0002,3]
[315456978,1709046638288,-2335.68983649,0.0002,3]
[315456982,1709046638479,-2335.68983649,0.0002,3]
[315456983,1709046638489,-2335.68883649,0.0002,3]
[315456984,1709046638498,-193.66350906,0.00020636,2]
[315456985,1709046638507,-165653.41163797,0.00022439,2]
[315456986,1709046638516,-433.76060799,0.00022439,2]
[315456987,1709046638525,-202.03552153,0.00022529,2]
[315456988,1709046638535,-7354.45577314,0.00022539,2]
[315456989,1709046638559,-38272.16224065,0.00022539,2]
[315456990,1709046638588,-730.14070861,0.00022539,2]
[315457008,1709046640718,-298.0444,0.00022539,2]
[315457009,1709046641401,-1786.45007751,0.00022539,2]
[315457010,1709046641492,-1466.83101744,0.00022539,2]
[315457021,1709046643188,-300.95762482,0.00022539,2]
[315457022,1709046643261,-570.06786,0.00022539,2]
[315457023,1709046643273,-194220.89029783,0.00022539,2]
[315457024,1709046643282,-240.61,0.00022542,2]
[315457025,1709046643292,-244.0,0.00022633,2]
[315457026,1709046643301,-153.0,0.00022633,2]
[315457027,1709046643311,-500.0,0.00022639,2]
[315457028,1709046643321,-1111.0,0.000227,2]
[315457029,1709046643330,-294.85635736,0.00022738,2]
[315457030,1709046643343,-500.0,0.00022739,2]
[315457031,1709046643352,-648.61713243,0.00022739,2]
[315457032,1709046643361,-500.0,0.00022739,2]
[315457033,1709046643371,-500.0,0.00022739,2]
[315457034,1709046643380,-556.12705744,0.00022739,2]
[315457035,1709046643390,-265.38365842,0.00022739,2]
[315457036,1709046643399,-500.0,0.00022739,2]
[315457037,1709046643408,-228.91356691,0.00022739,2]
[315457038,1709046643417,-181.45475882,0.00022739,2]
[315457039,1709046643426,-150.0,0.00022739,2]
[315457040,1709046643435,-500.0,0.00022739,2]
[315457041,1709046643444,-500.0,0.00022739,2]
[315457042,1709046643454,-500.0,0.00022739,2]
[315457043,1709046643462,-500.0,0.00022739,2]
[315457044,1709046643472,-500.0,0.00022739,2]
[315457045,1709046643481,-500.0,0.00022739,2]
[315457046,1709046643490,-500.0,0.00022739,2]
[315457047,1709046643500,-500.0,0.00022739,2]
[315457048,1709046643509,-412.21357364,0.00022739,2]
[315457049,1709046643519,-500.0,0.00022739,2]
[315457050,1709046643528,-500.0,0.00022739,2]
[315457051,1709046643537,-500.0,0.00022739,2]
[315457052,1709046643547,-500.0,0.00022739,2]
[315457053,1709046643557,-500.0,0.00022739,2]
[315457055,1709046643566,-500.0,0.00022739,2]
[315457057,1709046643575,-500.0,0.00022739,2]
[315457059,1709046643585,-500.0,0.00022739,2]
[315457060,1709046643596,-500.0,0.00022739,2]
[315457061,1709046643605,-500.0,0.00022739,2]
[315457062,1709046643614,-500.0,0.00022739,2]
[315457063,1709046643623,-500.0,0.00022739,2]
[315457064,1709046643634,-500.0,0.00022739,2]
[315457067,1709046643643,-570.5,0.00022739,2]
[315457068,1709046643652,-500.0,0.00022739,2]
[315457070,1709046643662,-605.92,0.00022739,2]
[315457072,1709046643671,-605.92,0.00022739,2]
[315457073,1709046643680,-500.0,0.00022739,2]
[315457074,1709046643690,-500.0,0.00022739,2]
[315457075,1709046643699,-500.0,0.00022739,2]
[315457076,1709046643709,-170.92541587,0.00022739,2]
[315457077,1709046643718,-500.0,0.00022739,2]
[315457078,1709046643727,-463.78,0.00022739,2]
[315457079,1709046643736,-500.0,0.00022739,2]
[315457080,1709046643746,-295.5466,0.00022739,2]
[315457081,1709046643755,-500.0,0.00022739,2]
[315457082,1709046643765,-532.63,0.00022739,2]
[315457083,1709046643774,-581.26,0.00022739,2]
[315457084,1709046643783,-512.79,0.00022739,2]
[315457085,1709046643793,-512.79,0.00022739,2]
[315457086,1709046643802,-500.0,0.00022739,2]
[315457087,1709046643811,-500.0,0.00022739,2]
[315457088,1709046643820,-570.39,0.00022739,2]
[315457089,1709046643829,-500.0,0.00022739,2]
[315457090,1709046643841,-500.0,0.00022739,2]
[315457091,1709046643850,-500.0,0.00022739,2]
[315457092,1709046643858,-500.0,0.00022739,2]
[315457093,1709046643867,-500.0,0.00022739,2]
[315457094,1709046643876,-500.0,0.00022739,2]
[315457095,1709046643885,-500.0,0.00022739,2]
[315457096,1709046643894,-500.0,0.00022739,2]
[315457097,1709046643903,-583.6,0.00022739,2]
[315457098,1709046643912,-680.44,0.00022739,2]
[315457099,1709046643920,-680.44,0.00022739,2]
[315457100,1709046643929,-680.44,0.00022739,2]
[315457101,1709046643938,-500.0,0.00022739,2]
[315457102,1709046643947,-500.0,0.00022739,2]
[315457103,1709046643956,-500.0,0.00022739,2]
[315457104,1709046643965,-500.0,0.00022739,2]
[315457105,1709046643974,-288.25882664,0.00022739,2]
[315457106,1709046643983,-500.0,0.00022739,2]
[315457107,1709046643992,-500.0,0.00022739,2]
[315457108,1709046644001,-500.0,0.00022739,2]
[315457109,1709046644011,-500.0,0.00022739,2]
[315457110,1709046644020,-500.0,0.00022739,2]
[315457111,1709046644029,-295.83995936,0.00022739,2]
[315457112,1709046644038,-500.0,0.00022739,2]
[315457113,1709046644047,-500.0,0.00022739,2]
[315457114,1709046644057,-500.0,0.00022739,2]
[315457115,1709046644066,-500.0,0.00022739,2]
[315457116,1709046644079,-500.0,0.00022739,2]
[315457117,1709046644089,-500.0,0.00022739,2]
[315457118,1709046644099,-225.34,0.00022739,2]
[315457119,1709046644108,-500.0,0.00022739,2]
[315457120,1709046644117,-500.0,0.00022739,2]
[315457121,1709046644126,-500.0,0.00022739,2]
[315457122,1709046644135,-500.0,0.00022739,2]
[315457123,1709046644146,-500.0,0.00022739,2]
[315457124,1709046644158,-500.0,0.00022739,2]
[315457125,1709046644168,-500.0,0.00022739,2]
[315457126,1709046644177,-500.0,0.00022739,2]
[315457127,1709046644186,-500.0,0.00022739,2]
[315457128,1709046644195,-500.0,0.00022739,2]
[315457129,1709046644205,-500.0,0.00022739,2]
[315457130,1709046644214,-243.41347181,0.00022739,2]
[315457131,1709046644224,-500.0,0.00022739,2]
[315457132,1709046644233,-500.0,0.00022739,2]
[315457133,1709046644243,-187.12806683,0.00022739,2]
[315457134,1709046644253,-550.2,0.00022739,2]
[315457135,1709046644263,-500.0,0.00022739,2]
[315457136,1709046644272,-500.0,0.00022739,2]
[315457137,1709046644281,-500.0,0.00022739,2]
[315457138,1709046644291,-348.61040587,0.00022739,2]
[315457139,1709046644300,-500.0,0.00022739,2]
[315457140,1709046644309,-500.0,0.00022739,2]
[315457141,1709046644319,-257.27980954,0.00022739,2]
[315457142,1709046644329,-500.0,0.00022739,2]
[315457143,1709046644340,-2044.38,0.00022739,2]
[315457144,1709046644349,-2044.38,0.00022739,2]
[315457145,1709046644359,-2044.38,0.00022739,2]
[315457146,1709046644368,-500.0,0.00022739,2]
[315457147,1709046644377,-337.29,0.00022739,2]
[315457148,1709046644386,-500.0,0.00022739,2]
[315457149,1709046644396,-500.0,0.00022739,2]
[315457150,1709046644407,-500.0,0.00022739,2]
[315457151,1709046644417,-500.0,0.00022739,2]
[315457152,1709046644427,-500.0,0.00022739,2]
[315457153,1709046644437,-500.0,0.00022739,2]
[315457154,1709046644446,-223.34395136,0.00022739,2]
[315457155,1709046644456,-344.73,0.00022739,2]
[315457156,1709046644465,-568.56755495,0.00022739,2]
[315457157,1709046644474,-500.0,0.00022739,2]
[315457158,1709046644483,-500.0,0.00022739,2]
[315457159,1709046644493,-500.0,0.00022739,2]
[315457160,1709046644503,-285.37,0.00022739,2]
[315457161,1709046644512,-500.0,0.00022739,2]
[315457162,1709046644521,-500.0,0.00022739,2]
[315457163,1709046644530,-500.0,0.00022739,2]
[315457164,1709046644539,-500.0,0.00022739,2]
[315457165,1709046644550,-500.0,0.00022739,2]
[315457166,1709046644559,-500.0,0.00022739,2]
[315457167,1709046644569,-600.25,0.00022739,2]
[315457168,1709046644578,-500.0,0.00022739,2]
[315457169,1709046644589,-500.0,0.00022739,2]
[315457170,1709046644601,-500.0,0.00022739,2]
[315457171,1709046644610,-500.0,0.00022739,2]
[315457172,1709046644620,-500.0,0.00022739,2]
[315457173,1709046644629,-500.0,0.00022739,2]
[315457174,1709046644639,-500.0,0.00022739,2]
[315457175,1709046644648,-500.0,0.00022739,2]
[315457176,1709046644657,-500.0,0.00022739,2]
[315457177,1709046644667,-500.0,0.00022739,2]
[315457178,1709046644676,-500.0,0.00022739,2]
[315457179,1709046644686,-626.15,0.00022739,2]
[315457180,1709046644695,-500.0,0.00022739,2]
[315457181,1709046644704,-500.0,0.00022739,2]
[315457182,1709046644714,-500.0,0.00022739,2]
[315457183,1709046644723,-500.0,0.00022739,2]
[315457184,1709046644732,-482.52,0.00022739,2]
[315457185,1709046644741,-508.4,0.00022739,2]
[315457186,1709046644750,-500.0,0.00022739,2]
[315457187,1709046644760,-610.44,0.00022739,2]
[315457188,1709046644769,-500.0,0.00022739,2]
[315457189,1709046644779,-500.0,0.00022739,2]
[315457190,1709046644787,-500.0,0.00022739,2]
[315457191,1709046644797,-500.0,0.00022739,2]
[315457192,1709046644806,-500.0,0.00022739,2]
[315457193,1709046644815,-500.0,0.00022739,2]
[315457194,1709046644824,-500.0,0.00022739,2]
[315457195,1709046644833,-500.0,0.00022739,2]
[315457196,1709046644844,-500.0,0.00022739,2]
[315457197,1709046644853,-500.0,0.00022739,2]
[315457198,1709046644862,-3377.86,0.00022739,2]
[315457199,1709046644872,-604.44,0.00022739,2]
[315457200,1709046644881,-3377.86,0.00022739,2]
[315457201,1709046644890,-500.0,0.00022739,2]
[315457202,1709046644899,-158.99287778,0.00022802,5]
[315457203,1709046644914,-46.00712222,0.00022802,5]
[315457204,1709046644923,-176.63,0.00022861,2]
[315457205,1709046644932,-500.0,0.00022899,2]
[315457206,1709046644941,-605.92,0.00022899,2]
[315457207,1709046644950,-368.13250319,0.00022899,2]
[315457208,1709046644963,-144.65749681,0.00022899,2]
[315457209,1709046644972,-500.0,0.00022899,2]
[315457210,1709046644981,-500.0,0.00022899,2]
[315457211,1709046644990,-500.0,0.00022899,2]
[315457212,1709046644999,-500.0,0.00022899,2]
[315457213,1709046645008,-500.0,0.00022899,2]
[315457214,1709046645018,-500.0,0.00022899,2]
[315457215,1709046645027,-334.85,0.00022899,2]
[315457216,1709046645036,-500.0,0.00022899,2]
[315457217,1709046645045,-500.0,0.00022899,2]
[315457218,1709046645055,-500.0,0.00022899,2]
[315457219,1709046645068,-3377.86,0.00022899,2]
[315457220,1709046645077,-5921.20548716,0.000229,4]
[315457221,1709046645095,-3166.12482474,0.000229,4]
[315457222,1709046645107,-10063.65246404,0.000229,4]
[315457223,1709046645127,-3535.60685328,0.000229,4]
[315457224,1709046645136,-160.17156795,0.000229,2]
[315457225,1709046645146,-193.66350906,0.00022954,2]
[315457226,1709046645157,-151.80251803,0.00022958,2]
[315457227,1709046645167,-2539.9,0.00022982,2]
[315457228,1709046645175,-1267.49177552,0.00022985,2]
[315457229,1709046645185,-500.0,0.00022985,2]
[315457230,1709046645194,-447.22,0.00022985,2]
[315457231,1709046645203,-500.0,0.00022985,2]
[315457232,1709046645212,-500.0,0.00022985,2]
[315457233,1709046645221,-255.42266707,0.00022986,2]
[315457234,1709046645230,-24477.82789966,0.00022987,2]
[315457235,1709046645239,-7636.22973362,0.00022987,2]
[315457236,1709046645248,-37109.62928612,0.00022987,2]
[315457237,1709046645258,-9184.63324832,0.00022987,2]
[315457238,1709046645267,-160.17156791,0.00022991,2]
[315457239,1709046645276,-500.0,0.00022999,2]
[315457240,1709046645285,-500.0,0.00022999,2]
[315457241,1709046645295,-605.92,0.00022999,2]
[315457242,1709046645304,-605.92,0.00022999,2]
[315457243,1709046645313,-512.79,0.00022999,2]
[315457244,1709046645322,-512.79,0.00022999,2]
[315457245,1709046645331,-500.0,0.00022999,2]
[315457246,1709046645343,-500.0,0.00022999,2]
[315457247,1709046645352,-500.0,0.00022999,2]
[315457248,1709046645361,-500.0,0.00022999,2]
[315457249,1709046645370,-170.91,0.00022999,2]
[315457250,1709046645379,-680.44,0.00022999,2]
[315457251,1709046645388,-680.44,0.00022999,2]
[315457252,1709046645397,-680.44,0.00022999,2]
[315457253,1709046645407,-500.0,0.00022999,2]
[315457254,1709046645416,-500.0,0.00022999,2]
[315457255,1709046645426,-500.0,0.00022999,2]
[315457256,1709046645435,-269.66,0.00022999,2]
[315457257,1709046645444,-500.0,0.00022999,2]
[315457258,1709046645454,-500.0,0.00022999,2]
[315457259,1709046645463,-500.0,0.00022999,2]
[315457260,1709046645473,-500.0,0.00022999,2]
[315457261,1709046645482,-500.0,0.00022999,2]
[315457262,1709046645491,-2044.38,0.00022999,2]
[315457263,1709046645502,-2044.38,0.00022999,2]
[315457264,1709046645511,-2044.38,0.00022999,2]
[315457265,1709046645522,-451.68,0.00022999,2]
[315457266,1709046645532,-500.0,0.00022999,2]
[315457267,1709046645542,-500.0,0.00022999,2]
[315457268,1709046645552,-500.0,0.00022999,2]
[315457269,1709046645563,-500.0,0.00022999,2]
[315457270,1709046645573,-500.0,0.00022999,2]
[315457271,1709046645583,-500.0,0.00022999,2]
[315457272,1709046645594,-389.26,0.00022999,2]
[315457273,1709046645604,-500.0,0.00022999,2]
[315457274,1709046645614,-470.2,0.00022999,2]
[315457275,1709046645624,-3377.86,0.00022999,2]
[315457276,1709046645634,-3377.86,0.00022999,2]
[315457277,1709046645644,-293739.86868685,0.00023,4]
[315457278,1709046645654,-69369.36659559,0.00023,2]
[315457279,1709046645663,-630.31619451,0.00023,2]
[315457280,1709046645673,-8945.00715781,0.00023,2]
[315457281,1709046645683,-27782.60669631,0.00023,2]
[315457282,1709046645692,-997.0,0.00023,6]
[315457283,1709046645701,-324331.66780728,0.00023,3]
[315457284,1709046645711,-151.80251803,0.00023054,2]
[315457285,1709046645720,-184.994,0.00023058,2]
[315457286,1709046645729,-160.17156791,0.00023082,2]
[315457287,1709046645739,-151.80251803,0.0002315,2]
[315457288,1709046645748,-160.17156791,0.00023173,2]
[315457289,1709046645758,-2305.167,0.00023238,2]
[315457290,1709046645767,-151.80251803,0.00023246,2]
[315457291,1709046645776,-160.17156791,0.00023264,2]
[315457292,1709046645785,-500.0,0.000233,2]
[315457293,1709046645794,-1000.0,0.000233,2]
[315457294,1709046645803,-1000.0,0.000233,2]
[315457295,1709046645812,-1057.0,0.000233,2]
[315457296,1709046645822,-151.80251803,0.00023343,2]
[315457297,1709046645831,-160.17156791,0.00023355,2]
[315457298,1709046645841,-1000.0,0.000234,2]
[315457299,1709046645851,-1147.0,0.000234,2]
[315457300,1709046645860,-1000.0,0.000234,2]
[315457301,1709046645869,-151.80251803,0.00023439,2]
[315457302,1709046645878,-160.17156791,0.00023445,2]
[315457303,1709046645887,-702.21,0.00023447,2]
[315457304,1709046645896,-150.0,0.00023449,2]
[315457305,1709046645905,-1000.0,0.000235,2]
[315457306,1709046645914,-1000.0,0.000235,2]
[315457309,1709046646073,-151.80251803,0.00023535,2]
[315457310,1709046646085,-160.17156791,0.00023536,2]
[315457311,1709046646098,-1000.0,0.000236,2]
[315457312,1709046646107,-160.17156791,0.00023627,2]
[315457313,1709046646116,-151.80251803,0.00023631,2]
[315457314,1709046646126,-152.91066921,0.00023661,2]
[315457315,1709046646136,-2000.0,0.00023684,3]
[315457316,1709046646145,-1158.91926803,0.00023702,2]
[315457317,1709046646154,-416.3,0.00023702,2]
[315457318,1709046646163,-23139.3022,0.00023711,2]
[315457319,1709046646172,-160.17156791,0.00023718,2]
[315457320,1709046646182,-150.0,0.00023719,2]
[315457321,1709046646192,-151.80251803,0.00023727,2]
[315457322,1709046646201,-244.0,0.00023729,2]
[315457323,1709046646210,-153.0,0.00023729,2]
[315457324,1709046646220,-150.0,0.00023734,2]
[315457325,1709046646229,-150.0,0.00023751,2]
[315457326,1709046646238,-500.0,0.00023752,2]
[315457327,1709046646247,-500.0,0.00023753,2]